Cogmind - Beta 16 @@@ ROGUE MODE // 2025.10.29 @ 19:04:20 Player: ZLD1 Result: Destroyed by Autobeam Turret with Autobeam Performance ------------- Evolutions (0) 0 Regions Visited (3) 600 Robots Destroyed (0) 0 Value Destroyed (0) 0 Prototype IDs (0) 0 Alien Tech Used (0) 0 Bonus (0) 0 TOTAL SCORE: 600 Bonus ------- None Cogmind --------- Core Integrity 0/250 Matter 300/300 Energy 98/100 System Corruption 0% Temperature Cool (12) Movement Core (50) Location -10/Subcaves Parts ------- > --- POWER (1) -------- (None) > --- PROPULSION (2) --- (None) > --- UTILITY (2) ------ Structural Scanner > --- WEAPON (2) ------- (None) > --- INVENTORY (5) ---- Ion Engine Aluminum Leg Aluminum Leg Medium Storage Unit Hardened Medium Armor Plating Peak State ------------ > --- POWER ------------ (None) > --- PROPULSION ------- (None) > --- UTILITY ---------- Structural Scanner > --- WEAPON ----------- (None) > --- INVENTORY -------- Ion Engine Light Ion Engine Aluminum Leg Aluminum Leg Small Storage Unit [Rating: 1] Favorites ----------- Power None Propulsion None Utility Structural Scanner Device Structural Scanner Weapon None Build | -11 -10 -10 -10 ------- Run | Yrd Mat Min Sub Slots Evolved . | . . . . Power . | . . . . Propulsion . | . . . . Utility . | . . . . Weapon . | . . . . Parts Attached 1 | . 1 . . Power . | . . . . Engine . | . . . . Core . | . . . . Reactor . | . . . . Propulsion . | . . . . Treads . | . . . . Leg . | . . . . Wheel . | . . . . Hover . | . . . . Flight . | . . . . Utility 1 | . 1 . . Device 1 | . 1 . . Storage . | . . . . Processor . | . . . . Hackware . | . . . . Protection . | . . . . Artifact . | . . . . Weapon . | . . . . Energy Gun . | . . . . Energy Cannon . | . . . . Ballistic Gun . | . . . . Ballistic Cannon . | . . . . Launcher . | . . . . Special Weapon . | . . . . Impact Weapon . | . . . . Slashing Weapon . | . . . . Piercing Weapon . | . . . . Special Melee Weapon . | . . . . Unidentified Prototypes . | . . . . Parts Lost . | . . . . Power . | . . . . Propulsion . | . . . . Utility . | . . . . Weapon . | . . . . Highest Loss Streak . | . . . . To Critical Strikes . | . . . . Average Backups 4 | 2 5 5 5 Power 1 | 1 2 1 1 Propulsion 1 | 1 2 2 2 Utility 1 | . 1 1 2 Weapon . | . . . . Tool/Special . | . . . . Unused Backups 7 | . 1 1 5 Power 2 | . . 1 1 Propulsion 2 | . . . 2 Utility 3 | . 1 . 2 Weapon . | . . . . Tool/Special . | . . . . Average Slot Usage (%) 12 | . 10 14 14 Device 12 | . 10 14 14 Peak Build Rating 1 | . 1 1 1 Average Rating . | . . 1 1 On Entrance . | . . 1 1 Avg Prop Armor Cover (%) . | . . . . Naked Turns 40 | . 40 . . Heaviest Build 1 | . 1 1 1 Greatest Support 3 | 3 3 3 3 Greatest Overweight (x) . | . . . . Average Overweight (x) . | . . . . Largest Inventory Capacity 5 | 5 5 5 5 Average Capacity 5 | 5 5 5 5 Most Carried 5 | 5 5 5 5 Average Carried 4 | 3 4 4 5 Final Capacity 5 | 5 5 5 5 Final Carried 5 | 5 5 5 5 Class Distribution -------------------- 100% | Mutant Dominant Class ---------------- Mutant | -10/Materials Mutant | -10/Mines Mutant | -10/Subcaves Resources | -11 -10 -10 -10 ----------- Run | Yrd Mat Min Sub Matter Collected 210 | 128 . 82 . Remotely . | . . . . Salvage Created . | . . . . Parts . | . . . . Haulers Intercepted . | . . . . Recyclers Shooed . | . . . . Parts Field Recycled . | . . . . Retrieved Matter . | . . . . Parts Self-Destructed . | . . . . Prevented . | . . . . Parts Restored . | . . . . Kills | -11 -10 -10 -10 ------- Run | Yrd Mat Min Sub Combat Hostiles Destroyed . | . . . . Classes Destroyed . | . . . . Best Kill Streak . | . . . . Combat Bots Only . | . . . . Max Kills in Single Turn . | . . . . Gunslinging . | . . . . Exploded . | . . . . Melee . | . . . . Uniques/NPCs Destroyed . | . . . . Combat | -11 -10 -10 -10 -------- Run | Yrd Mat Min Sub Hostile Shots Fired 30 | . . 5 25 Missed 12 | . . 1 11 Hits 18 | . . 4 14 Projectile 18 | . . 4 14 Damage Taken 262 | . . 118 144 Core 254 | . . 118 136 Absorbed by Shields . | . . . . Core Remaining (%) 100 | 100 . . . Volleys Fired . | . . . . Largest . | . . . . Hottest . | . . . . Shots Fired . | . . . . Gun . | . . . . Cannon . | . . . . Launcher . | . . . . Special . | . . . . Kinetic . | . . . . Thermal . | . . . . Explosive . | . . . . Electromagnetic . | . . . . Robot Hit Streak . | . . . . Robot Miss Streak . | . . . . Penetration Max . | . . . . Secondary Targets . | . . . . Shots Hit Robots . | . . . . Core Hits . | . . . . Critical Kills . | . . . . Critical Parts Destroyed . | . . . . Critical Strikes . | . . . . Melee Attacks . | . . . . Impact . | . . . . Slashing . | . . . . Piercing . | . . . . Sneak Attacks . | . . . . Combat Hostiles . | . . . . Follow-up Attacks . | . . . . Damage Inflicted . | . . . . Guns . | . . . . Cannons . | . . . . Explosions . | . . . . Melee . | . . . . Ramming . | . . . . Kinetic . | . . . . Thermal . | . . . . Explosive . | . . . . Electromagnetic . | . . . . Impact . | . . . . Slashing . | . . . . Piercing . | . . . . Highest Corruption . | . . . . Average Corruption . | . . . . Corruption Purged . | . . . . Corruption Blocked . | . . . . Overload Shots . | . . . . Overflow Damage . | . . . . Projectiles . | . . . . Explosions . | . . . . Melee . | . . . . Knockbacks . | . . . . Impact . | . . . . Kinetic . | . . . . Secondary . | . . . . Self-Inflicted Damage . | . . . . Shots . | . . . . Rammed . | . . . . Targets Rammed . | . . . . Kicked . | . . . . Crushed . | . . . . Highest Temperature . | . . . . Average Temperature . | . . . . Received Heat Transfer 78 | . . 42 36 Siege Activations . | . . . . Martial Activations . | . . . . Shielding Activations . | . . . . Robots Disrupted . | . . . . Combat Hostiles . | . . . . Robots Corrupted . | . . . . Combat Hostiles . | . . . . Parts Fried . | . . . . Impact Corruptions . | . . . . Robots Melted . | . . . . Combat Hostiles . | . . . . Parts Melted . | . . . . Heat Transferred . | . . . . Parts Sabotaged . | . . . . Parts Stolen . | . . . . Parts Stripped . | . . . . Power Chain Reactions . | . . . . Alert | -11 -10 -10 -10 ------- Run | Yrd Mat Min Sub Maximum Alert Level . | . . . . Low Security (%) 100 | 100 100 100 . Level 1 . | . . . . Level 2 . | . . . . Level 3 . | . . . . Level 4 . | . . . . Level 5 . | . . . . High Security . | . . . . Max Security . | . . . . Peak Influence 30 | . 30 30 . Initial . | . . . . Average 6 | . 9 4 . Influence Increases 105 | . 45 30 30 Partial Spotted 45 | . 45 . . Lose Combat Pursuer 60 | . . 30 30 Influence Decreases 75 | . 45 30 . Time Decay 75 | . 45 30 . Squads Dispatched . | . . . . Investigation . | . . . . Extermination . | . . . . Reinforcement . | . . . . Assault . | . . . . Garrison . | . . . . Intercept . | . . . . Searches Triggered . | . . . . Construction Impeded . | . . . . Haulers Reinforced . | . . . . Active Scanning Responses . | . . . . Cargo Convoy Interrupts . | . . . . Stealth | -11 -10 -10 -10 --------- Run | Yrd Mat Min Sub Distress Signals . | . . . . Communications Jammed . | . . . . Distress Signals . | . . . . Times Spotted 16 | . 2 3 11 Peak Tracking Total 9 | . 1 2 9 Tactical Retreats 2 | . . 1 1 Traps | -11 -10 -10 -10 ------- Run | Yrd Mat Min Sub Traps Triggered 1 | . . 1 . Indirectly . | . . . . Trap Hack Attempts . | . . . . Triggered . | . . . . Disarmed . | . . . . Reprogrammed . | . . . . Reused . | . . . . Traps Extracted . | . . . . Installed . | . . . . Triggered . | . . . . Machines | -11 -10 -10 -10 ---------- Run | Yrd Mat Min Sub Machines Disabled . | . . . . Max in Single Turn . | . . . . Machines Repaired . | . . . . Machines Dismantled . | . . . . Machines Sabotaged . | . . . . Overloaded Fab Kills . | . . . . Hacking | -11 -10 -10 -10 --------- Run | Yrd Mat Min Sub Machines Accessed 1 | . . 1 . Terminals . | . . . . Fabricators . | . . . . Repair Stations . | . . . . Recycling Units . | . . . . Scanalyzers . | . . . . Garrison Access . | . . . . Total Hacks 1 | . . 1 . Successful 1 | . . 1 . Failed . | . . . . Catastrophic . | . . . . Database Lockouts . | . . . . Manual . | . . . . Terminals . | . . . . Fabricators . | . . . . Repair Stations . | . . . . Recycling Units . | . . . . Scanalyzers . | . . . . Garrison Access . | . . . . Terminal Hacks 1 | . . 1 . Open Door 1 | . . 1 . Fabricator Hacks . | . . . . Repair Station Hacks . | . . . . Recycling Unit Hacks . | . . . . Scanalyzer . | . . . . Garrison Access Hacks . | . . . . Unauthorized Hacks . | . . . . Terminals . | . . . . Fabricators . | . . . . Repair Stations . | . . . . Recycling Units . | . . . . Scanalyzers . | . . . . Garrison Access . | . . . . Data Cores Recovered . | . . . . Used . | . . . . Hacking Detections . | . . . . Full Trace Events . | . . . . Feedback Events . | . . . . Feedback Blocked . | . . . . Robot Schematics Acquired . | . . . . Robots Built . | . . . . Authchips . | . . . . Time . | . . . . Total Robot Build Rating . | . . . . Part Schematics Acquired . | . . . . Parts Built . | . . . . Authchips . | . . . . Time . | . . . . Total Part Build Rating . | . . . . Part Studies Acquired . | . . . . Parts Repaired . | . . . . Time . | . . . . Parts Recycled . | . . . . Recycled Matter . | . . . . Retrieved Matter . | . . . . Retrieved Components . | . . . . Parts Scanalyzed . | . . . . Part Schematics Acquired . | . . . . Parts Damaged . | . . . . Bothacking | -11 -10 -10 -10 ------------ Run | Yrd Mat Min Sub Used RIF Installer . | . . . . Robots Hacked . | . . . . Non-combat . | . . . . Combat . | . . . . Robot Hacks Applied . | . . . . Relay Couplers Released . | . . . . Fabnet Peak Effective % . | . . . . Robots Rewired . | . . . . Allies Hacked . | . . . . Hacks Repelled . | . . . . Allies | -11 -10 -10 -10 -------- Run | Yrd Mat Min Sub Total Allies . | . . . . Largest Group . | . . . . Highest-Rated Group . | . . . . Highest-Rated Ally . | . . . . Total Orders . | . . . . Ally Attacks . | . . . . Total Damage . | . . . . Kills . | . . . . Allies Corrupted . | . . . . Allies Melted . | . . . . Intel | -11 -10 -10 -10 ------- Run | Yrd Mat Min Sub Active Infowar (turns) 421 | . 119 187 115 Structural 421 | . 119 187 115 Robot Analysis Total . | . . . . Derelict Logs Recovered 2 | . . 1 1 Drone Launches . | . . . . Drone Recoveries . | . . . . Exploration | -11 -10 -10 -10 ------------- Run | Yrd Mat Min Sub Turns Passed 489 | 28 159 187 115 Spaces Moved 908 | 46 312 320 230 Core 908 | 46 312 320 230 Treads . | . . . . Legs . | . . . . Wheels . | . . . . Hover . | . . . . Flight . | . . . . Fastest Speed 50 | 50 50 50 50 Average Speed 50 | 50 50 50 50 Slowest Speed 50 | 50 50 50 50 Overloaded Moves . | . . . . Propulsion Burnouts . | . . . . Robots Hopped . | . . . . Potential Cave-ins . | . . . . Cave-ins Triggered . | . . . . Exploration Rate (%) 31 | 4 59 47 15 Regions Visited 3 Branch Regions 2 Pre-discovered Areas 1 | . . . 1 Known Exits Taken . | . . . . Unknown Exits Taken 3 | 1 1 1 . Scrap Searched 1 | . . 1 . Spaces Dug . | . . . . Terrain Destroyed . | . . . . Melee . | . . . . Projectile . | . . . . AOE . | . . . . Terrain Rammed . | . . . . Walls Destroyed . | . . . . Machines Disabled . | . . . . Actions | -11 -10 -10 -10 --------- Run | Yrd Mat Min Sub Total 940 | 50 314 346 230 Wait 25 | . . 25 . Move 905 | 45 311 319 230 Hop . | . . . . Pick Up 7 | 5 1 1 . Fast Attach 1 | . 1 . . Attach . | . . . . Detach . | . . . . Swap . | . . . . Drop 2 | . 1 1 . Fire . | . . . . Melee . | . . . . Ram . | . . . . Kick . | . . . . Crush . | . . . . Escape Stasis . | . . . . Rewire . | . . . . Trap . | . . . . Miscellaneous . | . . . . Route ------- -11/Scrapyard -10/Materials (discovered 3 exits: [*Mat x2] / *Min) -10/Mines (discovered 3 exits: [*Mat x2] / [*Sub]) -10/Subcaves (discovered 1 exit: [*Rec]) History --------- Turn | Location | Event 5 | -11/Scrapyard | Discovered new exit (range 15) 29 | -11/Scrapyard | Entered Materials 79 | -10/Materials | Discovered new exit (range 8) 101 | -10/Materials | Discovered new exit (range 9) 141 | -10/Materials | Discovered new exit (range 15) 188 | -10/Materials | Entered Mines 210 | -10/Mines | Met a Derelict who couldn't figure out how to use a Trap Extractor 287 | -10/Mines | Discovered new exit (range 5) 310 | -10/Mines | Received a Rocket Launcher from a helpful Derelict 311 | -10/Mines | Build established: Mutant 353 | -10/Mines | Discovered new exit (range 8) 362 | -10/Mines | Discovered new exit (range 10) 375 | -10/Mines | Entered Subcaves 377 | -10/Subcaves | Shifting Twisted Machinery released Sub. Laser 406 | -10/Subcaves | Shifting Twisted Machinery released Riot Gun 444 | -10/Subcaves | Core integrity fell below 50% 485 | -10/Subcaves | Core integrity fell below 20% 490 | -10/Subcaves | Discovered new exit (range 14) 490 | -10/Subcaves | Destroyed by Autobeam Turret with Autobeam Last Messages --------------- launcher? I know I would if I were you, so I'm going to lend you mine." 00310_ SK-TND(g) slips back into the shadows. 00310_ K-01 Serf cleans the Laser Drill. 00342_ T-07 Excavator is excavating. 00353_ EXIT=FOUND 00363_ T-07 Excavator is excavating. 00370_ K-01 Serf collects debris. 00372_ T-07 Excavator is excavating. 00374_ K-01 Serf collects debris. LOCATION=UNKNOWN AMBIENT_HEAT=-10 GOAL=ESCAPE Sub. Laser falls loose from the Twisted Machinery. 00394_ Acquired derelict log, extracted data. World map updated: -10/Materials. Riot Gun falls loose from the Twisted Machinery. 00460_ G6-8F3(u) builds Twisted Machinery. 00490_ EXIT=FOUND Map ----- +----------------------------------------------------+ | ?????????????????????????????????????????????????? | | ?????????????????????????????????????????????????? | | ?????????????????????????????????????????????????? | | ?????????????????????????????????????????????????? | | ?????????????????????????????????????????????????? | | ?????????????????? ##????????????????????????????? | | ?????????????????? ##????????????????????????????? | | ???????????????# ????????????????????????????? | | ???????????????## ????????????????????????????? | | ???????????????## ###?????????????????????????? | | ????????????????? ###?????????????????????????? | | ?????????????????? ?????????????????????????? | | ?????????????????? ??????????????????????????? | | ????????### ????? ## #?????????????????????????? | | ???????#### ?????### ###????????????????????????? | | ???????### ##???## #####??????????????????????? | | ???????## ####?## ######????????????????????? | | ??????### ####### #####???????????????????? | | ??????## ###### ###???????????????????? | | ??????## ##### ##???????????????????? | | ??????# ## s ##???????????????????? | | ??????## ## ###???????????????????? | | ??????## ## ####??????"????????????? | | ??????## ?## ss###### ? "##?????????? | | ??????????### s###### "##?????????? | | ?????????#### @ t""###????????? | | ??????# ### ## <##????????? | | ?????### ## ## t""###????????? | | ?????### ###### "##?????????? | | ?????## ##### ? "##?????????? | | ?????## ##???????""##?????????? | | ?????### ### ###????????????????????? | | ??????## ### ###????????????????????? | | ???????? ?? ## ## ###???????????????????? | | ???????????## R ### ###??????????????????? | | ???????????## #### ##??????????????????? | | ???????????## ### ?????????????????? | | ??????????### ### ##??????????????? | | ??????????### ### ### ###??????????????? | | ??????????## ## ##? #########??????????????? | | ??????????## ### ###? ########???????????????? | | ??????????## ########? ##?????????????????????? | | ??????????## ######## #?????????????????????? | | ???????##### ######## ###????????????????????? | | ???????## ## ### # # ###????????????????????? | | ???????## ### ###???????????????????? | | ??????### #### ###??????????????????? | | ??????## ##### # # # ##??????????????????? | | ??????## ##### #######?? ##??????????????????? | | ??????### ##### #########??????????????????????? | +----------------------------------------------------+ Best States ------------- Heat Dissipation 25 Energy Generation 5 Energy Capacity 100 Matter Stores 300 Matter Capacity 300 Sight Range 16 Terrain Scan Density 10 Evasion (%) 50 Item Schematics ----------------- None Robot Schematics ------------------ None Fabricated ------------ Nothing Repaired ---------- Nothing Studied --------- None Alien Tech Used ----------------- None Achievements -------------- None Challenges ------------ None Game ------ Seed PiercelightDroneRigger Manual? 0 Play Time 00:06:21 Cumulative 64.3 hours Start 2025.10.29 @ 18:58:56 End 2025.10.29 @ 19:04:20 Sessions 1 Manual Loads 0 Difficulty Rogue Special Mode None Game No. 157 Rogue 157 Adventurer 0 Explorer 0 Win Type - Total 1 Types 1/0/0/0/0/0/0/0/0/0 Lore% 33 Gallery% 37 Achievement% 19 Wizard Run 0 Options --------- Layout 1 ASCII 0 Keyboard 0 Movement Arrows Keybinds 0 Fullscreen 1 Font 24/Smallcaps Map View 50x40 Zoom Use 0% Tactical HUD 1 Map Filters NONE Filters NONE Steam 1 RUN: ea23479b-e811-4b01-a2ae-e995709883e9